fUSD/lending_fUSD_20240412
["ID","MTS","AMOUNT","RATE_DAILY","PERIOD"]
[322310325,1712946633705,-278.97690524,0.00020999,2]
[322310326,1712946633716,-888.421,0.00020999,2]
[322310327,1712946633728,-266.68,0.00020999,2]
[322310328,1712946633744,-9114.98491769,0.00020999,2]
[322310329,1712946633753,-45107.79082599,0.00021,2]
[322310330,1712946633765,-265.4093085,0.00021,2]
[322310331,1712946633776,-1272.24,0.00021,2]
[322310332,1712946633792,-580.86539022,0.00021,2]
[322310333,1712946634496,-0.34716697,0.00021,2]
[322310334,1712946634508,-282.835599,0.00021,2]
[322310335,1712946634523,-2332.32978955,0.00021,2]
[322310336,1712946634534,-713.07366266,0.00021,2]
[322310337,1712946634546,-893.59727248,0.00021,2]
[322310338,1712946634558,-4000.0,0.00021,2]
[322310446,1712946639222,-6827.34788468,0.00021,2]
[322310449,1712946639234,-6394.00832,0.00021,2]
[322310451,1712946639245,-308.1385953,0.00021,2]
[322310453,1712946639256,-68000.00000002,0.00021,2]
[322310455,1712946639267,-838.75528515,0.00021,2]
[322310456,1712946639286,-8525.04154229,0.00021,2]
[322310457,1712946639298,-1438.12303759,0.00021,2]
[322310458,1712946639310,-268.19650568,0.00021,2]
[322310459,1712946639322,-821.82121681,0.00021,2]
[322310460,1712946639334,-16050.0,0.00021,2]
[322310462,1712946639370,-5695.7437989,0.00021,2]
[322310464,1712946639381,-339.86953,0.00021,2]
[322310466,1712946639393,-998.99898578,0.00021,2]
[322310468,1712946639404,-3319.01570001,0.00021,2]
[322310496,1712946639615,-29961.99784421,0.00021,2]
[322310498,1712946639626,-960.96,0.00021,2]
[322310505,1712946639684,-435.67082283,0.00021,2]
[322310507,1712946639695,-1600.0,0.00021,2]
[322310522,1712946639822,-95722.18347305,0.00021,2]
[322310531,1712946639893,-724.88564878,0.00021,2]
[322310534,1712946639920,-30263.1473479,0.00021,2]
[322310541,1712946639971,-628.54732127,0.00021,2]
[322310543,1712946639982,-338.338,0.00021,2]
[322310564,1712946640161,-1415.04281044,0.00021,2]
[322310827,1712946642694,-2463.03137628,0.00021,2]
[322310866,1712946642883,-866.67264469,0.00021,2]
[322310910,1712946643300,-439.79351339,0.00021,2]
[322310938,1712946643633,-372.36642755,0.00021,2]
[322311166,1712946645768,-1906.04957608,0.000209,2]
[322311175,1712946645832,-680.49,0.000209,2]
[322311183,1712946645905,-1901.64758644,0.000209,2]
[322311186,1712946645916,-527.62,0.0002099,3]
[322311188,1712946645926,-693.21729479,0.00020999,2]
[322311189,1712946645935,-66.39402184,0.00021,2]
[322311192,1712946645950,-1392.99995,0.00021,2]
[322311194,1712946645961,-1088.07424206,0.00021,2]
[322311196,1712946645973,-12108.03393231,0.00021,2]
[322311199,1712946645985,-16450.0,0.00021,2]
[322311201,1712946645996,-762.58582215,0.00021,2]
[322311203,1712946646010,-668.55205899,0.00021,2]
[322311205,1712946646028,-2821.70821389,0.00021,2]
[322311207,1712946646040,-3642.85020046,0.00021,2]
[322311210,1712946646056,-2362.176004,0.00021,2]
[322311213,1712946646076,-729.0,0.00021,2]
[322311216,1712946646100,-442.00189353,0.00021,2]
[322311219,1712946646115,-394.68667575,0.00021,2]
[322311221,1712946646128,-4722.95064141,0.00021,2]
[322311230,1712946646202,-607.97134023,0.00021,2]
[322311232,1712946646214,-667.0664,0.00021,2]
[322311912,1712946653637,179.38367057,0.00020409,2]
[322312025,1712946655496,365.24033438,0.00020409,2]
[322312032,1712946655554,1469.44551337,0.00020409,2]
[322312152,1712946656990,21278.74684576,0.00020409,2]
[322312153,1712946657610,407.88899033,0.00020409,2]
[322312154,1712946658079,941.68303376,0.00020409,2]
[322312155,1712946658770,155.0,0.00020409,2]
[322312156,1712946660744,822.93865516,0.00019389,2]
[322312157,1712946660767,129.44577535,0.00019389,2]
[322312158,1712946660952,1037.01238265,0.00020409,2]
[322312159,1712946661103,360.70981972,0.00020409,2]
[322312160,1712946661141,435.54346527,0.00020409,2]
[322312161,1712946662002,258.99001207,0.00019178,2]
[322312162,1712946662179,1372.10854233,0.00020409,2]
[322312163,1712946663509,300.56750398,0.00020409,2]
[322312164,1712946663545,1745.12275571,0.00015749,2]
[322312165,1712946663978,3160.92864505,0.00019948,2]
[322312166,1712946664164,323.24218697,0.00020409,2]
[322312167,1712946664988,155.0,0.00020409,2]
[322312168,1712946665520,2537.25772202,0.00015307,2]
[322312169,1712946667576,1039.08603946,0.00020409,2]
[322312170,1712946672464,20140.61106047,0.00020409,2]
[322312171,1712946673557,317.34356756,0.00020409,2]
[322312172,1712946673601,407.88899033,0.00020409,2]
[322312173,1712946675419,365.24033438,0.00020409,2]
[322312174,1712946677094,435.54346527,0.00020409,2]
[322312175,1712946677653,1469.44551337,0.00020409,2]
[322312176,1712946678963,305.803906,0.00020409,2]
[322312177,1712946679100,360.70981972,0.00020409,2]
[322312178,1712946679819,326.79694224,0.00020409,2]
[322312179,1712946680665,952.38443051,0.00019389,2]
[322312180,1712946681509,300.56750398,0.00020409,2]
[322312181,1712946682713,1745.12275571,0.00015749,2]
[322312182,1712946684912,155.0,0.00020409,2]
[322312183,1712946685368,2537.25772202,0.00015307,2]
[322312184,1712946685503,941.68303376,0.00020409,2]
[322312185,1712946685957,1256.57863737,0.00019948,2]
[322312186,1712946686118,323.24218697,0.00020409,2]
[322312187,1712946687588,1063.88176184,0.00020409,2]
[322312188,1712946690432,7811.13028118,0.00020409,2]
[322312189,1712946693740,326.79694224,0.00020409,2]
[322312190,1712946694668,952.38443051,0.00019389,2]
[322312191,1712946695085,435.54346527,0.00020409,2]
[322312192,1712946695657,187.94241561,0.00020409,2]
[322312193,1712946695719,407.88899033,0.00020409,2]
[322312194,1712946697615,1469.44551337,0.00020409,2]
[322312195,1712946699398,1740.8796602,0.00015749,2]
[322312196,1712946699544,421.11155011,0.00020409,2]
[322312197,1712946701487,199.43721374,0.00020409,2]
[322312198,1712946703389,2537.25772202,0.00015307,2]
[322312199,1712946703494,941.68303376,0.00020409,2]
[322312200,1712946704098,323.24218697,0.00020409,2]
[322312201,1712946704914,155.0,0.00020409,2]
[322312202,1712946713580,218.52087617,0.00020409,2]
[322312203,1712946714444,3116.9,0.00020319,2]
[322312204,1712946715507,1001.63452703,0.00020409,2]
[322312205,1712946715690,326.79694224,0.00020409,2]
[322312206,1712946716754,952.38443051,0.00019389,2]
[322312207,1712946719102,435.54346527,0.00020409,2]
[322312208,1712946719872,2537.25772202,0.00015307,2]
[322312209,1712946722914,155.0,0.00020409,2]
[322312210,1712946723500,941.68303376,0.00020409,2]
[322312211,1712946726307,323.24218697,0.00020409,2]
[322312212,1712946728329,6658.55,0.00020264,2]
[322312213,1712946735734,638.07636844,0.00018897,2]
[322312214,1712946737713,326.79694224,0.00020409,2]
[322312215,1712946738674,493.38132848,0.00019389,2]
[322312216,1712946739111,435.54346527,0.00020409,2]
[322312217,1712946741108,155.0,0.00020409,2]
[322312218,1712946741396,2537.25772202,0.00015307,2]
[322312219,1712946741515,941.68303376,0.00020409,2]
[322312220,1712946742393,500.0,0.00020159,2]
[322312221,1712946744103,323.24218697,0.00020409,2]
[322312222,1712946751434,500.0,0.00020159,2]
[322312223,1712946755585,435.54346527,0.00020409,2]
[322312224,1712946755703,326.79694224,0.00020409,2]
[322312225,1712946755914,1486.16853332,0.00015307,2]
[322312226,1712946764934,155.0,0.00020409,2]
[322312227,1712946766110,323.24218697,0.00020409,2]
[322312228,1712946766930,235.32,0.00020421,2]
[322312229,1712946767216,235.32,0.00020477,2]
[322312230,1712946767512,171.99330935,0.00020409,2]
[322312231,1712946771190,435.54346527,0.00020409,2]
[322312232,1712946771699,326.79694224,0.00020409,2]
[322312233,1712946774263,158.64,0.00019892,2]
[322312234,1712946774572,158.64,0.00019903,2]
[322312235,1712946774793,158.64,0.00019914,2]
[322312236,1712946775008,158.64,0.00019925,2]
[322312237,1712946775501,158.64,0.00019936,2]
[322312238,1712946775832,158.64,0.00019947,2]
[322312239,1712946775911,158.64,0.00019958,2]
[322312240,1712946776103,158.64,0.00019969,2]
[322312241,1712946776549,158.64,0.0001998,2]
[322312242,1712946776784,158.64,0.00019991,2]
[322312243,1712946779411,8135.16149,0.00020429,2]
[322312244,1712946784930,217.49625342,0.00020409,2]
[322312245,1712946786129,323.24218697,0.00020409,2]
[322312246,1712946791121,435.54346527,0.00020429,2]
[322312247,1712946791774,326.79694224,0.00020429,2]
[322312248,1712946801361,863.11991372,0.00020429,2]
[322312249,1712946802930,3634.0731,0.00020429,2]
[322312250,1712946804103,323.24218697,0.00020429,2]
[322312251,1712946808647,3810.43341699,0.00020429,2]
[322312252,1712946809698,326.79694224,0.00020429,2]
[322312253,1712946811120,435.54346527,0.00020429,2]
[322312254,1712946824129,243.36946215,0.00020429,2]
[322312255,1712946828245,3365.79515859,0.0002043,2]
[322312256,1712946831173,391.19477087,0.00020429,2]
[322312257,1712946831699,326.79694224,0.00020429,2]
[322312258,1712946844937,1000.0,0.00019839,2]
[322312259,1712946847204,161.21002968,0.00020427,2]
[322312260,1712946849846,326.79694224,0.00020429,2]
[322312261,1712946852227,161.21002963,0.00020473,2]
[322312262,1712946869732,173.98231878,0.00020429,2]
[322312263,1712946874419,219.89009366,0.00020418,2]
[322312264,1712946876951,225.48350571,0.00020429,2]
[322312265,1712946877595,1044.90649376,0.00020429,2]
[322312266,1712946879305,259.63,0.00019708,2]
[322312267,1712946879376,155.39610475,0.00020429,2]
[322312268,1712946880123,176.39,0.00020256,2]
[322312269,1712946893507,200.0,0.00019687,2]
[322312270,1712946895714,326.73064045,0.00020429,2]
[322312271,1712946896995,1852.42,0.00019687,2]
[322312272,1712946902735,1746.48735107,0.00015565,2]
[322312273,1712946905493,187.64,0.00015739,2]
[322312274,1712946922745,1745.12275571,0.00015433,2]
[322312275,1712946928637,6186.38344788,0.00020411,2]
[322312276,1712946930415,210.856161,0.0002,2]
[322312277,1712946931796,323.32008066,0.00020256,2]
[322312278,1712946942774,599.09524398,0.00015433,2]
[322312279,1712946951773,311.05234818,0.00020256,2]
[322312280,1712946953866,300.0,0.00020432,2]
[322312281,1712946955819,664.34,0.00017697,2]
[322312282,1712946956210,664.34,0.00019961,2]
[322312283,1712946959757,174.44,0.00019607,2]
[322312284,1712946964110,319.09179837,0.00015433,2]
[322312285,1712946965302,864.81971647,0.00015433,2]
[322312286,1712946969470,370.0191142,0.00015433,2]
[322312287,1712946971436,2690.89621758,0.00012,2]
[322312288,1712946973545,1411.65956719,0.00015433,2]
[322312289,1712946984035,155.15897873,0.00015433,2]
[322312290,1712946985078,5582.25125532,0.00020427,2]
[322312291,1712946985461,365.88065748,0.00015433,2]
[322312292,1712946985775,322.02239215,0.00015433,2]
[322312293,1712946985816,23900.0,0.00019619,2]
[322312294,1712946986074,785.88173984,0.00020501,2]
[322312295,1712946990056,1297.27092912,0.00020501,2]
[322312296,1712946991011,428.17496105,0.00020427,2]
[322312297,1712946991414,684.9464,0.00020479,2]
[322312298,1712946992021,155.0,0.00020501,2]
[322312299,1712946994879,19646.07439867,0.00015433,2]
[322312300,1712946995195,2104.37612516,0.00020501,2]
[322312301,1712946995235,780.05382611,0.00020501,2]
[322312302,1712946997208,160.61653946,0.00020403,2]
[322312303,1712946999823,4315.63124223,0.00020501,2]
[322312304,1712947000490,3609.65704915,0.00015433,2]
[322312305,1712947002321,160.61653945,0.00020427,2]
[322312306,1712947003136,532.27676482,0.00020501,2]
[322312307,1712947003244,1062.42894718,0.00020501,2]
[322312308,1712947004973,342.75064077,0.00020501,2]
[322312309,1712947008351,3377.19112884,0.00020501,2]
[322312310,1712947009465,705.30963033,0.00020501,2]
[322312311,1712947010012,708.5719525,0.00020501,2]
[322312312,1712947010465,201.98830693,0.00020501,2]
[322312313,1712947010808,19646.07439867,0.00015433,2]
[322312314,1712947011116,155.0,0.00020501,2]
[322312315,1712947017146,268.0535,0.00020479,2]
[322312316,1712947017897,487.20647456,0.00020501,2]
[322312317,1712947020636,5416.38946165,0.0002,3]
[322312318,1712947022901,523.10403564,0.00020501,2]
[322312319,1712947024107,150.5,0.0002099,15]
[322312320,1712947024527,1000.0,0.00020501,2]
[322312321,1712947024579,150.5,0.0002098,15]
[322312322,1712947025489,150.5,0.0002097,15]
[322312323,1712947025548,523.10403564,0.00020501,2]
[322312324,1712947026801,3435.82851971,0.00020501,2]
[322312325,1712947027095,171.89594433,0.00020319,2]
[322312326,1712947030096,4666.67592701,0.00020402,2]
[322312327,1712947030468,732.02,0.00019828,2]
[322312328,1712947037162,155.0,0.00020501,2]
[322312329,1712947040958,407.75423407,0.00020501,2]
[322312330,1712947046206,200.0,0.00019657,2]
[322312331,1712947047511,1093.53098164,0.00020501,2]
[322312332,1712947060770,1617.12,0.00019646,2]
[322312333,1712947063845,12814.11,0.00019803,2]
[322312334,1712947064567,785.88173984,0.00020501,2]
[322312335,1712947065408,1392.9655,0.00020405,2]
[322312336,1712947069791,2768.56437452,0.00020501,2]
[322312337,1712947073484,988.94107492,0.00020501,2]
[322312338,1712947074415,1234.79,0.00019646,2]
[322312339,1712947088613,1155.48869963,0.000205,2]
[322312340,1712947089772,298.7622799,0.000205,2]
[322312341,1712947090438,487.20647456,0.000205,2]
[322312342,1712947095219,2500.0,0.00020479,2]
[322312343,1712947095965,705.30963033,0.000205,2]
[322312344,1712947097015,1000.0,0.000205,2]
[322312345,1712947100494,642.97716476,0.000205,2]
[322312346,1712947105597,150.0,0.00019682,2]
[322312347,1712947109148,1291.37360342,0.00019576,2]
[322312348,1712947109791,298.7622799,0.00020296,2]
[322312349,1712947110359,644.86581108,0.000205,2]
[322312350,1712947112975,156.55076502,0.00018451,2]
[322312351,1712947116017,3159.87967817,0.00019476,2]
[322312352,1712947122082,864.71000666,0.00020296,2]
[322312353,1712947126246,2356.04018017,0.000205,2]
[322312354,1712947127782,398.68746475,0.00020296,2]
[322312355,1712947129291,282.8206,0.00020402,2]
[322312356,1712947134526,322.73947682,0.00020403,2]
[322312357,1712947140080,864.71000666,0.00020296,2]
[322312358,1712947143152,785.88173984,0.000205,2]
[322312359,1712947143353,150.5,0.0002099,15]
[322312360,1712947143869,150.5,0.0002098,15]
[322312361,1712947144334,150.5,0.0002097,15]
[322312362,1712947144701,525.85134183,0.000205,2]
[322312363,1712947145694,5537.10322803,0.000205,2]
[322312364,1712947146551,3406.17756238,0.00020493,2]
[322312365,1712947155998,200.0,0.000203,7]
[322312366,1712947158096,500.0,0.000204,7]
[322312367,1712947160212,700.0,0.000205,7]
[322312368,1712947161711,1083.42376126,0.000205,2]
[322312369,1712947162078,296.48898738,0.00020296,2]
[322312370,1712947162329,1000.0,0.000206,7]
[322312371,1712947163049,785.88173984,0.000205,2]
[322312372,1712947164443,1200.0,0.000207,7]
[322312373,1712947164615,4936.3024,0.00020426,2]
[322312374,1712947164697,278.7275899,0.000205,2]
[322312375,1712947165840,269.48908401,0.000205,2]
[322312376,1712947166604,200.0,0.000208,7]
[322312377,1712947166904,487.20647456,0.000205,2]
[322312378,1712947168645,200.0,0.000209,7]
[322312379,1712947168676,160.0,0.00019749,2]
[322312380,1712947171527,1000.0,0.000205,2]
[322312381,1712947176404,164.90988445,0.000205,2]
[322312382,1712947179372,785.88173984,0.000205,2]
[322312383,1712947179421,3112.78589807,0.00019475,7]
[322312384,1712947182550,463.633,0.00020405,2]
[322312385,1712947183543,761.50391099,0.00020499,2]
[322312386,1712947183846,268.96531707,0.000205,2]
[322312387,1712947184009,3176.6284223,0.00019475,2]
[322312388,1712947184896,487.20647456,0.000205,2]
[322312389,1712947186347,1500.0,0.00019752,2]
[322312390,1712947186911,23314.33584788,0.000205,2]
[322312391,1712947189542,1000.0,0.000205,2]
[322312392,1712947193015,4091.18,0.00019752,2]
[322312393,1712947197044,291.43398116,0.000205,2]
[322312394,1712947200145,4624.74554964,0.00020482,2]
[322312395,1712947202624,150.0,0.000205,2]
[322312396,1712947202859,150.0,0.000205,2]
[322312397,1712947202912,20315.16414781,0.000205,2]
[322312398,1712947203075,553.17144713,0.000205,2]
[322312399,1712947203111,150.0,0.000205,2]
[322312400,1712947203312,241.41790534,0.000205,2]
[322312401,1712947203369,268.14558605,0.000205,2]
[322312402,1712947206222,190.79,0.00020492,2]
[322312403,1712947207558,1000.0,0.000205,2]
[322312404,1712947207589,1125.70996016,0.000205,2]
[322312405,1712947209604,155.0,0.000205,2]
[322312406,1712947210939,222.52989956,0.000205,2]
[322312407,1712947211931,1062.42894718,0.000205,2]
[322312408,1712947212357,293.6462943,0.00020493,2]
[322312409,1712947213746,2388.24121052,0.000205,2]
[322312410,1712947216222,208.47667207,0.000205,2]
[322312411,1712947217086,614.03,0.00019695,2]
[322312412,1712947217867,166.98,0.00020286,2]
[322312413,1712947219043,683.00125252,0.000205,2]
[322312414,1712947219466,191.4776989,0.000205,2]
[322312415,1712947220275,982.48816381,0.000205,2]
[322312416,1712947220975,155.0,0.000205,2]
[322312417,1712947221129,3350.74916906,0.000205,2]
[322312418,1712947222016,3155.84658012,0.00019475,2]
[322312419,1712947223418,4324.64565833,0.000205,2]
[322312420,1712947224559,191.60394835,0.000205,2]
[322312421,1712947226747,1255.07550829,0.00020499,2]
[322312422,1712947226909,193.57206001,0.000205,2]
[322312423,1712947227301,7371.5065377,0.000205,2]
[322312424,1712947227538,990.6155768,0.000205,2]
[322312425,1712947228114,545322.76692099,0.000205,2]
[322312426,1712947228826,155.0,0.00020499,2]
[322312427,1712947229771,1061.74609763,0.000205,2]
[322312428,1712947230921,155.0,0.000205,2]
[322312429,1712947231560,155.0,0.000205,2]
[322312430,1712947232917,17928.21169523,0.000205,2]
[322312431,1712947233357,4315.63124223,0.000205,2]
[322312432,1712947233564,1000.0,0.000205,2]
[322312433,1712947233717,2348.97634667,0.000205,2]
[322312434,1712947236263,155.0,0.00020403,2]
[322312435,1712947236727,155.0,0.000205,2]
[322312436,1712947237054,235.92999059,0.000205,2]
[322312437,1712947237432,1793.02030548,0.000205,2]
[322312438,1712947237569,780.05382611,0.000205,2]
[322312439,1712947239319,708.5719525,0.000205,2]
[322312440,1712947239849,155.0,0.000205,2]
[322312441,1712947239886,2108.87496327,0.000205,2]
[322312442,1712947240964,376.19598272,0.000205,2]
[322312443,1712947241205,694.0,0.00019752,2]
[322312444,1712947242178,1121.66056613,0.00020999,5]
[322312445,1712947244127,545322.76692099,0.000205,2]
[322312446,1712947244344,620.86787036,0.000205,2]
[322312447,1712947246446,287.8372186,0.000205,2]
[322312448,1712947246946,155.0,0.000205,2]
[322312449,1712947247307,792.80369804,0.000205,2]
[322312450,1712947249050,785.42521986,0.000205,2]
[322312451,1712947249795,298.51979636,0.00020295,2]
[322312452,1712947251191,275.40595316,0.000205,2]
[322312453,1712947251271,8412.98518047,0.000205,2]
[322312454,1712947252526,738.13604312,0.000205,2]
[322312455,1712947253794,200.0,0.000203,7]
[322312456,1712947254543,301.81309237,0.000205,2]
[322312457,1712947254913,7500.0,0.00020403,2]
[322312458,1712947254982,155.0,0.000205,2]
[322312459,1712947255541,1000.0,0.000205,2]
[322312460,1712947255843,1968.4207604,0.000205,2]
[322312461,1712947255992,500.0,0.000204,7]
[322312462,1712947257346,376.19598272,0.000205,2]
[322312463,1712947257574,413.73368019,0.000205,2]
[322312464,1712947257859,226.51443299,0.000205,2]
[322312465,1712947258093,155.0,0.000205,2]
[322312466,1712947258129,800.0,0.000205,7]
[322312467,1712947260286,619.85075727,0.000205,2]
[322312468,1712947260348,1000.0,0.000206,7]
[322312469,1712947262438,1300.0,0.000207,7]
[322312470,1712947264162,316809.72370526,0.000205,2]
[322312471,1712947264187,228513.04321573,0.000205,2]
[322312472,1712947264546,200.0,0.000208,7]
[322312473,1712947264582,500.0,0.00019696,2]
[322312474,1712947266655,200.0,0.000209,7]
[322312475,1712947270100,544.7207122,0.000164,2]
[322312476,1712947273535,1000.0,0.000205,2]
[322312477,1712947274146,155.0,0.000205,2]
[322312478,1712947274452,1248.6644958,0.000205,2]
[322312479,1712947274954,436.92925601,0.000205,2]
[322312480,1712947275533,317.75,0.00020491,3]
[322312481,1712947276728,1242.30044469,0.000205,2]
[322312482,1712947276827,451.14,0.00019846,2]
[322312483,1712947277075,451.14,0.00019901,2]
[322312484,1712947277300,451.14,0.00019955,2]
[322312485,1712947277513,451.14,0.0002001,2]
[322312486,1712947277921,451.14,0.00020064,2]
[322312487,1712947277967,451.14,0.00020118,2]
[322312488,1712947278222,451.14,0.00020173,2]
[322312489,1712947278468,451.14,0.00020227,2]
[322312490,1712947278501,156.98059001,0.000205,2]
[322312491,1712947278710,451.14,0.00020282,2]
[322312492,1712947278982,451.14,0.00020336,2]
[322312493,1712947279224,451.14,0.00020391,2]
[322312494,1712947279465,451.14,0.00020445,2]
[322312495,1712947279696,451.14,0.00020499,2]
[322312496,1712947279758,500.0,0.00019698,2]
[322312497,1712947280126,152697.48222268,0.000205,2]
[322312498,1712947282078,255.6687,0.00020427,2]
[322312499,1712947286058,184.15791957,0.000164,2]
[322312500,1712947286606,302.1,0.00020491,3]
[322312501,1712947290725,346.46664435,0.000205,2]
[322312502,1712947292084,250.0,0.00019697,2]
[322312503,1712947292122,288.10829613,0.000205,2]
[322312504,1712947292839,868.77,0.00019697,2]
[322312505,1712947293112,868.77,0.00019702,2]
[322312506,1712947293530,868.77,0.00019707,2]
[322312507,1712947293768,868.77,0.00019713,2]
[322312508,1712947293980,868.77,0.00019718,2]
[322312509,1712947294197,868.77,0.00019723,2]
[322312510,1712947294411,868.77,0.00019728,2]
[322312511,1712947294640,868.77,0.00019733,2]
[322312512,1712947294882,868.77,0.00019739,2]
[322312513,1712947295103,868.77,0.00019744,2]
[322312514,1712947295357,868.77,0.00019749,2]
[322312515,1712947295543,1000.0,0.000205,2]
[322312516,1712947295588,868.77,0.00019754,2]
[322312517,1712947295768,326.67757,0.000205,2]
[322312518,1712947295801,868.77,0.00019759,2]
[322312519,1712947296015,868.77,0.00019764,2]
[322312520,1712947296415,868.77,0.0001977,2]
[322312521,1712947296654,868.77,0.00019775,2]
[322312522,1712947296887,868.77,0.0001978,2]
[322312523,1712947297307,868.77,0.00019785,2]
[322312524,1712947297462,151.05,0.00020491,3]
[322312525,1712947297553,868.77,0.0001979,2]
[322312526,1712947299341,269.8706562,0.000205,2]
[322312527,1712947299375,868.77,0.00019796,2]
[322312528,1712947304600,300.0,0.00020401,2]
[322312529,1712947309773,453.2,0.00020491,3]
[322312530,1712947310835,155.0,0.000205,2]
[322312531,1712947311011,10346.37,0.0001971,2]
[322312532,1712947315546,1000.0,0.000205,2]
[322312533,1712947317895,35196.77114484,0.00019709,2]
[322312534,1712947321564,503.39689242,0.000205,2]
[322312535,1712947321670,51954.0106,0.00020402,2]
[322312536,1712947322326,150.0,0.000205,2]
[322312537,1712947322391,150.0,0.000205,2]
[322312538,1712947325330,9128.23157147,0.00020401,2]
[322312539,1712947325827,7821.99,0.000205,2]
[322312540,1712947326765,179.89989495,0.000205,2]
[322312541,1712947335359,266.90306325,0.000205,2]
[322312542,1712947335544,1000.0,0.000205,2]
[322312543,1712947335902,16221.45121768,0.000205,2]
[322312544,1712947336337,155.62348997,0.000205,2]
[322312545,1712947337790,200.76396926,0.000205,2]
[322312546,1712947337919,295.8857038,0.000205,2]
[322312547,1712947339699,2500.0,0.00020401,2]
[322312548,1712947339905,205.36093141,0.000205,2]
[322312549,1712947341247,172.03475828,0.000205,2]
[322312550,1712947342442,206.23207189,0.000205,2]
[322312551,1712947342547,707.20622612,0.000205,2]
[322312552,1712947343398,1131.18624237,0.000205,2]
[322312553,1712947343614,180.58,0.00015775,2]
[322312554,1712947344618,155.0,0.000205,2]
[322312555,1712947345964,304.82793055,0.000205,2]
[322312556,1712947346943,601.30438827,0.000205,2]
[322312557,1712947346983,177.68790016,0.000205,2]
[322312558,1712947347035,273.96752541,0.000205,2]
[322312559,1712947348366,212.59855795,0.000205,2]
[322312560,1712947348706,538.86370128,0.000205,2]
[322312561,1712947348768,232.022335,0.000205,2]
[322312562,1712947349257,573.69887871,0.000205,2]
[322312563,1712947349348,2476.3791,0.00020401,2]
[322312564,1712947349586,301.56312764,0.00020402,2]
[322312565,1712947349831,157.09483559,0.000205,2]
[322312566,1712947350806,734.54,0.00019718,2]
[322312567,1712947351542,331.35254529,0.000205,2]
[322312568,1712947351814,184.99361137,0.000205,2]
[322312569,1712947352161,174.4228506,0.000205,2]
[322312570,1712947352465,180.71789901,0.000205,2]
[322312571,1712947352500,155.20495085,0.000205,2]
[322312572,1712947352735,542.62978743,0.000205,2]
[322312573,1712947353462,155.0,0.000205,2]
[322312574,1712947354581,180.68788228,0.000205,2]
[322312575,1712947355075,788.71072943,0.000205,2]
[322312576,1712947355355,203.77157851,0.000205,2]
[322312577,1712947355583,176.39,0.00020266,2]
[322312578,1712947355661,303.65133067,0.000205,2]
[322312579,1712947355906,284.48347754,0.000205,2]
[322312580,1712947355942,261.23505022,0.000205,2]
[322312581,1712947356280,2729.30649513,0.000205,2]
[322312582,1712947356314,654.6711174,0.000205,2]
[322312583,1712947356393,212.03145583,0.000205,2]
[322312584,1712947357057,155.20654588,0.000205,2]
[322312585,1712947357380,155.31508233,0.000205,2]